bitfinex/quotes_ETHUSD_20260117
["timestamp","ask_amount","ask_price","bid_price","bid_amount"]
[1768690744667,12.06556737,3304.5,3304.0,12.55290805]
[1768690744993,12.06556737,3304.5,3304.0,15.57950652]
[1768690745670,12.06556737,3304.5,3304.2,0.002]
[1768690745874,12.06556737,3304.5,3303.5,0.498]
[1768690745875,12.06556737,3304.3,3302.6,13.20602011]
[1768690746082,4.39662529,3304.4,3301.9,1e-08]
[1768690746083,15.581506,3302.0,3301.9,1e-08]
[1768690746243,15.581506,3302.0,3301.0,0.002]
[1768690746244,13.1128214,3301.2,3301.0,0.002]
[1768690746447,0.44104462,3301.2,3301.0,0.002]
[1768690746940,0.001606,3301.5,3301.0,0.002]
[1768690747186,0.66667458,3302.1,3301.5,12.55290805]
[1768690747187,0.00080024,3302.1,3301.5,12.55290805]
[1768690747515,0.35121152,3302.0,3301.5,12.55290805]
[1768690748879,0.35121152,3302.0,3301.6,3.0288345]
[1768690749049,0.35121152,3302.0,3301.7,12.55290805]
[1768690750083,7.74498087,3303.1,3301.7,12.55290805]
[1768690750271,3.02764718,3302.9,3301.9,12.55290805]
[1768690750447,0.499,3302.7,3302.2,12.55290805]
[1768690751810,3.52684015,3302.7,3302.2,12.55290805]
[1768690754613,0.00080048,3302.8,3302.3,12.55290805]
[1768690755507,3.02856424,3302.8,3302.3,12.55290805]
[1768690755811,8.24058187,3302.7,3302.3,12.55290805]
[1768690756703,8.24058187,3302.7,3302.1,3.02997013]
[1768690756915,0.00080651,3302.2,3301.7,0.0008004]
[1768690757076,8.73958187,3302.1,3301.7,0.0008004]
[1768690757574,8.24058187,3301.9,3301.7,0.0008004]
[1768690758473,8.24058187,3301.9,3301.3,12.55290805]
[1768690758721,8.24058187,3301.9,3301.5,0.002]
[1768690759823,3.02865103,3301.8,3301.5,0.002]
[1768690760111,11.2692329,3301.8,3301.5,0.002]
[1768690760516,8.24058187,3301.7,3301.5,0.002]
[1768690761079,3.02865103,3301.8,3301.5,0.002]
[1768690761080,8.73958187,3301.6,3301.5,0.002]
[1768690761399,8.73958187,3301.6,3301.1,0.00160632]
[1768690762112,8.24058187,3301.5,3301.1,0.00160632]
[1768690764885,0.499,3301.6,3301.1,0.00160632]
[1768690765093,0.499,3301.5,3301.2,12.38109436]
[1768690768615,11.26935207,3301.7,3301.2,12.38109436]
[1768690768815,0.499,3301.6,3301.2,12.38109436]
[1768690770125,0.499,3301.6,3301.1,0.00160632]
[1768690770126,8.73958187,3301.6,3301.1,0.00160632]
[1768690770324,8.23860187,3301.5,3301.1,0.00160632]
[1768690770627,8.23860187,3301.5,3301.1,0.00360632]
[1768690770827,8.23860187,3301.1,3300.5,0.002]
[1768690771123,8.73760187,3301.0,3300.5,0.002]
[1768690771325,8.73760187,3301.0,3300.4,12.38390021]
[1768690771527,8.73760187,3301.0,3300.4,0.00280585]
[1768690772098,3.0294768,3300.9,3300.3,12.38109436]
[1768690772320,8.23940772,3300.8,3300.3,12.38109436]
[1768690772503,0.49980585,3300.8,3300.3,15.41111989]
[1768690772826,0.49980585,3300.8,3300.3,12.38109436]
[1768690773238,8.73840772,3300.8,3300.1,15.41327726]
[1768690774329,11.76801624,3300.8,3300.1,15.41327726]
[1768690774514,8.23860187,3300.7,3300.1,15.41327726]
[1768690775201,0.49980585,3300.8,3300.2,12.50501873]
[1768690775702,0.499,3300.7,3300.2,12.50501873]
[1768690777704,0.499,3300.7,3300.3,3.03002757]
[1768690777933,0.499,3300.7,3300.3,15.5350463]
[1768690778116,0.00080585,3300.8,3300.3,15.5350463]
[1768690778322,0.499,3300.7,3300.4,12.50501873]
[1768690780033,0.00080585,3300.8,3300.4,15.53492134]
[1768690780240,0.49980585,3300.8,3300.4,15.53492134]
[1768690780406,0.00080585,3300.8,3300.4,15.53492134]
[1768690785322,0.001,3300.5,3300.4,15.53492134]
[1768690786532,0.001,3300.5,3300.4,12.50501873]
[1768690794235,0.001,3300.5,3300.4,15.53495449]
[1768690797472,0.001,3300.5,3300.4,12.50501873]
[1768690797974,0.001,3300.5,3300.4,15.53495449]
[1768690800482,0.001,3300.5,3300.2,14.84632084]
[1768690800657,0.001,3300.5,3300.2,11.81625428]
[1768690800856,0.001,3300.5,3300.1,3.03220441]
[1768690801065,8.23960187,3300.5,3300.1,0.002]
[1768690801491,9.56256206,3300.5,3300.1,0.002]
[1768690801709,9.56256206,3300.5,3299.8,11.81625428]
[1768690802218,8.23860187,3300.3,3299.8,11.81625428]
[1768690802502,8.23860187,3300.3,3299.7,0.002]
[1768690804268,1.32396019,3300.5,3299.7,11.81825428]
[1768690804269,8.23860187,3300.2,3299.7,11.81825428]
[1768690804473,3.03003706,3300.3,3299.7,11.81825428]
[1768690804673,0.499,3300.1,3299.7,11.81825428]
[1768690805106,0.001,3300.5,3299.7,11.81825428]
[1768690805270,0.499,3300.7,3299.8,11.81625428]
[1768690805605,8.73760187,3300.7,3299.8,11.81625428]
[1768690805902,8.73760187,3300.7,3299.8,12.31525428]
[1768690806106,0.499,3300.7,3299.8,12.31525428]
[1768690806275,0.499,3300.7,3300.0,11.81625428]
[1768690808711,0.499,3300.7,3300.1,6.0604224]
[1768690808908,0.499,3300.7,3300.2,11.81625428]
[1768690811328,11.26792831,3301.1,3300.4,11.81625428]
[1768690811510,11.76692831,3301.1,3300.4,11.81625428]
[1768690814920,11.76692831,3301.1,3300.4,3.02988313]
[1768690815146,0.00080666,3301.2,3300.5,11.81625428]
[1768690815147,3.03000922,3301.2,3300.5,11.81625428]
[1768690815287,3.52900922,3301.2,3300.5,11.81625428]
[1768690816622,3.52900922,3301.2,3300.5,3.02977215]
[1768690816826,3.52900922,3301.2,3300.6,11.81625428]
[1768690818822,0.49980666,3301.2,3300.7,11.81625428]
[1768690819825,0.00080666,3301.2,3300.7,11.81625428]
[1768690821429,3.52581094,3301.4,3300.9,11.81625428]
[1768690821625,0.499,3301.4,3300.9,11.81625428]
[1768690821829,3.52804832,3301.4,3300.9,11.81625428]
[1768690821993,11.76665019,3301.4,3300.9,11.81625428]
[1768690822795,8.73760187,3301.4,3300.9,11.81625428]
[1768690825403,8.23860187,3301.1,3300.4,0.00080593]
[1768690825654,0.00080674,3301.2,3300.8,15.56409759]
[1768690826432,0.00080674,3301.2,3300.9,12.53453265]
[1768690828150,0.00080674,3301.2,3300.9,15.56398029]
[1768690828920,0.50060632,3301.5,3300.9,6.05892444]
[1768690829253,0.50060632,3301.5,3301.0,12.53453265]
[1768690830351,0.50060632,3301.5,3301.0,15.56389617]
[1768690830719,0.00160632,3301.5,3301.1,12.53453265]
[1768690832064,0.00160632,3301.5,3301.1,15.56373889]
[1768690832365,3.03027268,3301.8,3301.1,15.56373889]
[1768690832366,0.00160552,3301.8,3301.2,12.53453265]
[1768690833222,0.00160552,3301.8,3301.2,12.53653265]
[1768690835459,0.00160552,3301.8,3301.4,12.08868131]
[1768690836626,8.24179458,3301.8,3301.3,3.02910974]
[1768690837366,8.24179458,3301.8,3301.3,12.08868131]
[1768690838440,0.00160552,3301.8,3301.3,12.08868131]
[1768690839558,0.00160552,3301.8,3301.5,12.08868131]
[1768690842066,0.00160552,3301.8,3301.6,12.08868131]
[1768690842934,0.0008004,3302.1,3301.6,12.08868131]
[1768690842935,0.0008004,3302.1,3301.7,12.08868131]
[1768690844062,0.0008004,3302.1,3301.9,12.08868131]
[1768690844361,0.00080651,3302.2,3301.9,12.08868131]
[1768690850352,0.00080651,3302.2,3302.0,12.08868131]
[1768690852054,0.50160724,3302.5,3302.0,12.68626748]
[1768690852454,0.50160724,3302.5,3302.0,15.71472388]
[1768690852888,0.50160724,3302.5,3302.0,15.71472866]
[1768690854972,0.00260724,3302.5,3302.0,15.71472894]
[1768690857893,0.00160724,3302.5,3302.1,12.68706804]
[1768690859490,0.00160724,3302.5,3302.1,15.7154369]
[1768690861159,0.00160724,3302.5,3302.2,12.68626748]
[1768690861383,8.24098954,3302.8,3302.3,3.02819247]
[1768690861698,8.24098954,3302.8,3302.3,15.71445995]
[1768690862194,0.00080048,3302.8,3302.3,15.71445995]
[1768690862566,0.00080048,3302.8,3302.4,12.68626748]
[1768690863682,0.00080048,3302.8,3302.5,12.68626748]
[1768690866784,0.00080048,3302.8,3302.7,12.68626748]
[1768690870611,3.02721106,3303.4,3302.9,12.68626748]
[1768690872476,10.96802507,3303.4,3302.9,12.68626748]
[1768690875506,7.94081401,3303.4,3303.0,3.02755071]
[1768690879316,7.94081401,3303.6,3303.0,15.71381819]
[1768690879614,0.499,3303.6,3303.0,15.71381819]
[1768690879815,7.94081401,3303.5,3303.0,15.71381819]
[1768690881524,0.001,3303.1,3303.0,15.71381819]
[1768690890722,0.001,3303.1,3302.8,12.92457486]
[1768690890938,7.94181401,3303.1,3302.7,0.499]
[1768690891243,7.94181401,3303.1,3302.5,12.92457486]
[1768690891397,7.94181401,3303.1,3302.5,15.95251454]
[1768690892233,10.96932355,3303.1,3302.5,12.92457486]
[1768690892406,7.94181401,3303.1,3302.5,15.95257315]
[1768690893119,7.94181401,3303.1,3303.0,0.002]
[1768690896532,10.96927306,3303.1,3303.0,0.002]
[1768690897128,7.94181401,3303.1,3303.0,0.002]
[1768690897429,0.001,3303.1,3303.0,0.002]
[1768690901657,7.94181401,3303.1,3303.0,0.002]
[1768690902222,0.001,3303.1,3303.0,0.002]
[1768690903949,0.001,3303.1,3303.0,12.02053471]
[1768690904456,3.02701409,3303.6,3303.1,12.01853471]
[1768690905036,3.02701409,3303.6,3303.3,0.002]
[1768690905571,8.43981401,3303.7,3303.3,0.002]
[1768690905572,11.46675932,3303.7,3303.3,0.002]
[1768690908454,11.11751463,3303.6,3303.3,0.002]
[1768690909444,3.02701309,3303.6,3303.3,0.002]
[1768690909628,3.02693657,3303.7,3303.3,12.02053471]
[1768690916575,0.001,3303.4,3303.3,12.02053471]
[1768690920974,11.61633546,3303.8,3303.3,12.02053471]
[1768690922052,3.52583392,3303.8,3303.3,12.02053471]
[1768690922253,8.09050154,3303.7,3303.3,12.02053471]
[1768690922437,8.09050154,3303.7,3303.3,0.002]
[1768690924377,11.11746211,3303.7,3303.3,0.002]
[1768690926887,8.09050154,3303.7,3303.3,0.002]
[1768690927584,11.11742481,3303.7,3303.3,0.002]
[1768690928749,0.001,3303.4,3303.3,0.002]
[1768690945997,8.09150154,3303.4,3302.6,3.52690303]
[1768690946577,8.09150154,3303.4,3302.7,3.02781755]
[1768690946894,8.08852154,3303.2,3302.7,3.02781755]
[1768690947766,8.08852154,3303.2,3302.6,15.79785768]
[1768690948680,8.08852154,3303.2,3302.6,18.82577507]
[1768690948894,8.08852154,3303.2,3302.7,12.76994061]
[1768690950700,8.08852154,3303.1,3302.5,15.79793097]
[1768690950888,8.08852154,3303.1,3302.6,15.79780006]
[1768690951704,8.08852154,3303.1,3303.0,0.002]
[1768690953215,6.21157104,3305.2,3303.1,12.76994061]
[1768690953391,5.67971567,3304.9,3303.1,13.24023357]
[1768690953598,4.39892862,3304.4,3303.1,13.24023357]
[1768690953778,4.39892862,3304.4,3303.1,12.76994061]
[1768690953779,5.67971567,3304.0,3303.1,12.76994061]
[1768690953983,5.67971567,3304.0,3303.1,13.26894061]
[1768690954602,6.17871567,3304.0,3303.1,0.499]
[1768690954806,6.17871567,3304.0,3303.0,0.002]
[1768690955010,5.67971567,3303.8,3303.0,12.34940789]
[1768690955181,5.67971567,3303.6,3303.0,0.002]
[1768690955724,5.67971567,3303.6,3303.0,3.02954772]
[1768690958522,5.67971567,3303.6,3303.0,0.002]
[1768690962457,8.70672643,3303.6,3303.0,0.002]
[1768690962610,3.0268176,3303.8,3303.0,0.002]
[1768690962815,5.67971567,3303.7,3303.0,0.002]
[1768690964440,3.02696037,3303.7,3303.3,0.002]
[1768690964640,5.67971567,3303.6,3303.3,0.002]
[1768690967851,4.89792862,3303.9,3303.4,12.34740789]
[1768690967852,10.40991043,3303.9,3303.4,12.34740789]
[1768690968544,6.8841186,3303.8,3303.4,12.34740789]
[1768690968838,6.8841186,3303.8,3303.3,12.34940789]
[1768690972266,6.8841186,3303.8,3303.3,0.002]
[1768690973571,6.8841186,3303.7,3303.3,0.002]
[1768690974788,6.8841186,3303.6,3303.3,0.002]
[1768690975067,6.8841186,3303.6,3303.0,11.72720795]
[1768690976252,3.02709247,3303.5,3303.0,11.72720795]
[1768690976456,9.91121107,3303.5,3303.3,0.002]
[1768690976675,9.91121107,3303.5,3303.0,11.72720795]
[1768690976828,10.21745579,3303.5,3303.0,11.72720795]
[1768690978684,11.72097145,3303.0,3301.9,0.002]
[1768690978965,11.72097145,3303.0,3302.3,11.72520795]
[1768690979463,11.72097145,3303.0,3302.4,14.75409769]
[1768690979666,4.89792862,3303.1,3302.4,14.75409769]
[1768690979667,1e-08,3303.1,3303.0,11.72520795]
[1768690980389,1e-08,3303.1,3302.9,3.0276028]
[1768690980537,1e-08,3303.1,3302.9,14.75281075]
[1768690980937,0.19303329,3394.8,3303.0,11.72520795]
[1768690980938,11.72097145,3304.4,3303.0,11.72520795]
[1768690981280,16.11990007,3304.0,3303.3,11.72520795]
[1768690981434,16.11990007,3304.0,3302.9,6.05524517]
[1768690981435,11.72097145,3303.8,3302.8,3.02765808]
[1768690981631,11.72097145,3303.6,3302.7,12.22420795]
[1768690981871,11.72097145,3303.5,3302.7,11.72520795]
[1768690982180,11.72097145,3304.0,3303.0,11.72520795]
[1768690982350,11.72097145,3304.6,3303.0,11.72520795]
[1768690982547,11.72097145,3303.9,3303.1,0.499]
[1768690982736,11.72097145,3303.9,3303.5,0.00726218]
[1768690983070,11.72097145,3303.6,3302.9,3.02763528]
[1768690983250,11.72097145,3303.6,3302.9,11.72520795]
[1768690983436,14.74742263,3304.2,3303.2,11.72520795]
[1768690983636,3.02626847,3304.4,3303.4,11.72520795]
[1768690983637,14.74723992,3304.4,3303.4,11.72520795]
[1768690984036,11.72097145,3304.3,3303.4,11.72520795]
[1768690984242,13.54822861,3304.3,3303.4,11.72520795]
[1768690984643,14.74742263,3304.2,3303.5,11.72520795]
[1768690984880,11.72097145,3304.1,3303.5,11.72520795]
[1768690986674,1.82725716,3304.3,3303.7,11.72520795]
[1768690986876,11.72097145,3304.3,3303.7,11.72520795]
[1768690987079,12.21997145,3304.5,3303.7,11.72520795]
[1768690987259,3.52517825,3304.5,3303.7,11.72520795]
[1768690987671,3.02617825,3304.5,3303.7,11.72520795]
[1768690988179,3.02617825,3304.5,3303.7,12.22420795]
[1768690988681,14.74707589,3304.6,3303.7,12.22420795]
[1768690988983,16.27168348,3304.6,3303.9,11.72520795]
[1768690989581,16.27168348,3304.6,3303.6,0.002]
[1768690989582,11.72197145,3304.0,3303.6,0.002]
[1768690989766,4.55071203,3304.6,3303.7,11.72520795]
[1768690990078,3.02610444,3304.6,3303.8,11.72520795]
[1768690990284,11.72097145,3304.2,3303.6,0.002]
[1768690990480,11.72097145,3304.2,3303.6,0.501]
[1768690990777,11.72097145,3304.2,3303.6,3.52798593]
[1768690990964,11.72097145,3304.2,3303.6,15.25319388]
[1768690991169,0.499,3304.9,3303.7,11.72520795]
[1768690991357,0.71583665,3304.8,3303.7,11.72520795]
[1768690991549,12.15498855,3304.8,3303.7,11.72520795]
[1768690991947,11.72097145,3304.6,3303.7,11.72520795]
[1768690993152,11.72097145,3304.5,3303.9,11.72520795]
[1768690993482,3.02612183,3304.6,3303.9,11.72520795]
[1768690994384,0.499,3304.9,3303.9,11.72520795]
[1768690994584,3.0257186,3305.0,3304.1,11.72520795]
[1768690995280,14.74669005,3305.0,3304.3,11.72520795]
[1768690995798,17.77240865,3305.0,3304.3,11.72520795]
[1768690997952,11.72097145,3304.9,3304.3,11.72520795]
[1768690998285,11.72097145,3304.9,3303.6,0.002]
[1768690998286,11.72097145,3304.5,3303.8,0.499]
[1768690998486,11.72097145,3304.5,3304.0,11.72520795]
[1768690999600,11.72097145,3304.5,3304.0,14.75182345]
[1768691000274,11.72097145,3304.5,3304.0,11.72520795]
[1768691000895,14.74717824,3304.5,3304.0,11.72520795]
[1768691001683,0.001,3304.2,3304.0,11.72520795]
[1768691001886,0.001,3304.2,3303.8,15.86470399]
[1768691002201,0.001,3304.2,3303.6,15.86689164]
[1768691002202,12.89966044,3304.2,3303.6,15.86689164]
[1768691002494,12.89966044,3304.2,3303.7,15.36581575]
[1768691003062,12.89966044,3304.2,3303.8,3.02680604]
[1768691003258,12.89966044,3304.2,3303.8,15.36571903]
[1768691003496,12.89966044,3304.2,3303.8,12.33891299]
[1768691003497,0.001,3304.2,3303.8,12.33891299]
[1768691004085,12.89966044,3304.2,3303.6,15.86688296]
[1768691004701,12.89966044,3304.2,3303.7,3.02690266]
[1768691005594,12.89966044,3304.2,3303.7,15.36581565]
[1768691007099,12.89966044,3304.2,3303.7,12.33891299]
[1768691008004,12.89966044,3304.2,3303.7,15.36581636]
[1768691009005,0.001,3304.2,3303.7,15.36581733]
[1768691010099,12.89966044,3304.2,3303.6,0.501]
[1768691010298,15.92614206,3304.2,3303.6,3.52792291]
[1768691011989,12.89866044,3304.1,3303.6,0.002]
[1768691012191,12.89866044,3303.9,3303.3,0.002]
[1768691013209,15.92543658,3303.9,3303.3,0.002]
[1768691014211,15.92543658,3303.9,3303.6,0.002]
[1768691014520,12.83965264,3303.6,3302.9,12.67757993]
[1768691014676,12.83965264,3303.6,3303.0,3.02752684]
[1768691014871,12.83965264,3303.6,3302.9,15.70519064]
[1768691015269,15.86674017,3303.6,3302.9,15.70519064]
[1768691015709,12.83965264,3303.5,3302.9,12.67757993]
[1768691015906,12.83965264,3303.3,3302.6,0.499]
[1768691016206,13.33865264,3303.5,3302.9,15.70519673]
[1768691018009,16.36574949,3303.5,3302.9,15.70519673]
[1768691018703,12.83965264,3303.4,3302.7,12.67757993]
[1768691019011,14.96787355,3303.4,3302.8,0.499]
[1768691019382,14.96787355,3303.4,3302.8,13.17657993]
[1768691019582,2.12822091,3303.4,3302.9,15.70522079]
[1768691019779,12.83965264,3303.8,3303.0,12.67757993]
[1768691020006,3.0249316,3305.9,3303.0,12.67757993]
[1768691020007,12.83965264,3304.1,3303.0,12.67757993]
[1768691021098,0.001,3304.2,3303.3,12.67757993]
[1768691021313,15.86713519,3304.2,3303.5,12.67757993]
[1768691021519,12.83965264,3304.1,3303.5,0.499]
[1768691022113,15.86623417,3304.1,3303.5,13.17657993]
[1768691024542,12.83965264,3304.0,3303.2,12.67757993]
[1768691024679,12.83965264,3303.8,3303.2,3.52636414]
[1768691025086,12.83965264,3303.8,3303.4,3.02718052]
[1768691025782,12.83965264,3303.8,3303.3,12.67757993]
[1768691025986,12.83965264,3303.8,3303.3,15.70480186]
[1768691027021,0.001,3303.5,3303.3,15.70480186]
[1768691027931,0.001,3303.5,3303.3,12.67757993]
[1768691028910,0.001,3303.5,3303.2,0.002]
[1768691029809,12.84065264,3303.5,3303.2,0.002]
[1768691030299,12.84065264,3303.5,3303.2,3.02935954]
[1768691030500,0.001,3303.5,3303.2,3.02935954]
[1768691030836,0.001,3303.5,3303.3,3.02727127]
[1768691031432,0.001,3303.5,3303.3,15.7048512]
[1768691031644,12.83965264,3304.1,3303.4,12.67757993]
[1768691031852,0.001,3304.2,3303.6,12.64105254]
[1768691032194,12.09643166,3304.2,3303.6,12.64105254]
[1768691032502,12.09643166,3304.2,3303.7,13.14005254]
[1768691033333,12.09643166,3304.2,3303.7,16.16691475]
[1768691034038,12.09543166,3304.1,3303.7,0.499]
[1768691034606,12.09543166,3304.1,3303.7,3.5259036]
[1768691035931,12.09543166,3304.1,3303.7,3.0269036]
[1768691036341,12.09543166,3304.1,3302.9,0.002]
[1768691036342,12.87637373,3304.0,3302.9,0.002]
[1768691036640,12.09543166,3303.8,3302.9,0.002]
[1768691036836,12.09543166,3303.5,3302.9,0.002]
[1768691037040,12.09543166,3303.5,3302.9,12.64305254]
[1768691037041,1.64952072,3303.4,3302.9,12.64305254]
[1768691037235,12.09543166,3304.0,3302.9,15.67069208]
[1768691037407,12.59443166,3303.7,3302.9,15.67069208]
[1768691038217,0.499,3303.7,3303.0,12.64105254]
[1768691038406,12.59443166,3303.7,3303.0,12.64105254]
[1768691039108,12.59443166,3303.7,3303.2,0.002]
[1768691041345,15.62139876,3303.7,3303.2,0.002]
[1768691041831,12.09543166,3303.6,3303.2,0.002]
[1768691044948,12.09543166,3303.6,3303.2,12.64305254]
[1768691045167,12.09643166,3303.9,3303.2,12.64305254]
[1768691046143,0.001,3303.9,3303.2,12.64305254]
[1768691046752,12.09643166,3303.9,3303.2,12.64305254]
[1768691046916,15.12317402,3303.9,3303.4,12.64105254]
[1768691047246,0.001,3303.9,3303.5,13.14005254]
[1768691048342,15.12317502,3303.9,3303.5,0.499]
[1768691049051,12.09543166,3303.8,3303.5,0.499]
[1768691050850,0.001,3303.6,3303.5,0.499]
[1768691052059,0.001,3303.6,3303.5,13.14005254]
[1768691060656,0.001,3303.6,3303.5,0.499]
[1768691063044,0.001,3303.9,3303.6,11.73998419]
[1768691065150,0.001,3303.9,3303.7,11.73998419]
[1768691067163,0.001,3303.9,3303.7,14.76681495]
[1768691068362,12.89914684,3304.2,3303.7,14.76681495]
[1768691070102,12.89914684,3304.2,3303.7,17.79372417]
[1768691070241,12.89814684,3304.6,3304.1,11.73998419]
[1768691070611,12.89814684,3304.6,3304.2,0.499]
[1768691070785,3.02593918,3304.8,3304.2,0.499]
[1768691070786,12.89814684,3304.8,3304.2,12.23898419]
[1768691072382,15.92407365,3304.8,3304.3,11.73998419]
[1768691073784,12.89814684,3304.8,3304.3,11.73998419]
[1768691075002,12.89814684,3304.8,3304.3,14.76632678]
[1768691077803,15.92405246,3304.8,3304.3,11.73998419]
[1768691079609,12.89814684,3304.8,3304.3,14.7663324]
[1768691080604,15.92405258,3304.8,3304.3,11.73998419]
[1768691085378,0.001,3304.5,3304.3,11.73998419]
[1768691087187,0.001,3304.5,3303.6,3.02694524]
[1768691087188,12.20764759,3304.4,3303.6,3.02694524]
[1768691087378,12.20764759,3304.4,3303.7,0.499]
[1768691087579,12.20764759,3304.3,3303.3,12.95822959]
[1768691087802,12.20764759,3304.3,3303.4,0.499]
[1768691087998,12.20764759,3304.3,3303.2,12.96022959]
[1768691088198,12.20764759,3304.3,3303.5,0.499]
[1768691088605,12.20764759,3304.3,3303.2,0.002]
[1768691088606,12.20764759,3304.3,3303.2,3.02933129]
[1768691088887,12.20764759,3304.0,3303.3,0.499]
[1768691089195,12.20764759,3303.8,3303.4,0.499]
[1768691089852,12.20764759,3303.8,3303.5,0.499]
[1768691091817,12.20764759,3303.6,3303.5,0.499]
[1768691093249,12.20764759,3303.6,3303.2,0.002]
[1768691093548,12.20764759,3303.6,3303.3,0.499]
[1768691094239,12.20764759,3303.6,3303.2,0.002]
[1768691094446,12.20764759,3303.6,3303.3,0.499]
[1768691095037,12.51893996,3303.5,3303.2,0.002]
[1768691095235,12.51893996,3303.5,3303.4,0.499]
[1768691098021,12.51893996,3303.5,3303.3,0.499]
[1768691099841,15.54606159,3303.5,3303.2,0.002]
[1768691100046,12.51893996,3303.5,3303.2,0.501]
[1768691100725,12.51893996,3303.9,3303.2,3.52834481]
[1768691100930,12.51893996,3303.7,3303.2,3.52834481]
[1768691101135,12.51893996,3303.7,3303.2,15.8177445]
[1768691101345,12.51893996,3303.7,3303.2,12.79039969]
[1768691101522,15.54586264,3303.7,3303.2,0.501]
[1768691102320,12.51893996,3303.6,3303.2,0.002]
[1768691102522,14.5013982,3303.6,3303.2,0.002]
[1768691103554,14.5013982,3303.6,3303.2,3.02936536]
[1768691103848,12.51893996,3303.6,3303.2,3.02936536]
[1768691104529,12.51893996,3304.0,3303.3,12.28939969]
[1768691107058,15.54566411,3304.0,3303.3,15.31663719]
[1768691107755,12.51893996,3304.0,3303.3,15.31663719]
[1768691108452,12.51893996,3304.0,3303.5,0.002]
[1768691108658,14.07349203,3304.0,3303.5,0.002]
[1768691111363,4.89881198,3304.5,3303.6,12.28939969]
[1768691111364,12.51893996,3304.4,3303.6,12.28939969]
[1768691113447,15.54529955,3304.3,3303.6,15.31632093]
[1768691113765,15.54529955,3304.3,3303.6,12.28939969]
[1768691114669,12.51893996,3304.2,3303.7,0.499]
[1768691114870,14.37609675,3304.2,3303.7,0.499]
[1768691115664,12.51893996,3304.0,3303.7,0.499]
[1768691116593,12.51893996,3304.0,3303.5,0.002]
[1768691116739,12.51893996,3303.7,3303.3,0.499]
[1768691117477,12.51893996,3303.7,3303.3,3.52627417]
[1768691118188,12.51893996,3303.7,3303.3,3.02727417]
[1768691118886,12.51893996,3303.7,3303.3,15.31667386]
[1768691119087,12.51893996,3303.9,3303.3,15.31667386]
[1768691119567,15.54567926,3303.9,3303.3,15.31667386]
[1768691120293,12.51893996,3303.9,3303.3,15.31667386]
[1768691121156,0.001,3303.6,3303.3,15.31667386]
[1768691122483,0.001,3303.6,3303.3,12.28939969]
[1768691123085,0.001,3303.6,3303.2,3.52833841]
[1768691123287,0.001,3303.6,3303.2,15.99833538]
[1768691130889,0.001,3303.6,3303.2,19.02570278]
[1768691131191,0.001,3303.6,3303.3,12.46999697]
[1768691131686,12.13455788,3304.1,3303.3,12.46999697]
[1768691133172,12.13455788,3304.1,3303.5,12.47199697]
[1768691133472,13.65065894,3304.1,3303.6,0.499]
[1768691133670,11.90013064,3304.0,3303.6,0.499]
[1768691137863,11.90013064,3304.0,3303.6,3.5259948]
[1768691138946,11.90013064,3304.0,3303.5,0.002]
[1768691139100,11.90013064,3303.9,3303.5,0.501]
[1768691140242,11.90013064,3303.9,3303.5,0.002]
[1768691140536,11.90013064,3303.8,3303.5,0.002]
[1768691145044,0.001,3303.7,3303.5,0.002]
[1768691154253,0.001,3303.7,3303.5,12.12084032]
[1768691155542,14.98413224,3304.3,3303.6,12.11884032]
[1768691155743,0.28276303,3304.2,3303.6,12.11884032]
[1768691155980,14.98413224,3304.3,3303.6,12.11884032]
[1768691156140,0.28276575,3304.2,3303.6,15.14577923]
[1768691156481,14.9842244,3304.2,3303.6,12.11884032]
[1768691157045,14.9842244,3304.2,3303.6,15.1458222]
[1768691157271,11.95773891,3304.2,3303.6,15.1458222]
[1768691158075,14.98421903,3304.2,3303.6,15.1458222]
[1768691159770,11.95773891,3304.1,3303.6,15.1458222]
[1768691160958,11.95773891,3304.3,3303.6,15.1458222]
[1768691161252,15.2669887,3304.2,3303.6,15.1458222]
[1768691161456,14.98420902,3304.2,3303.6,15.1458222]
[1768691161753,3.02628391,3304.4,3303.6,15.1458222]
[1768691161754,14.98401423,3304.4,3303.6,15.1458222]
[1768691161960,11.95773891,3304.4,3303.7,12.11884032]
[1768691162272,11.95773891,3304.4,3303.9,12.11884032]
[1768691162659,0.001,3304.5,3303.9,12.11884032]
[1768691162858,0.28275375,3304.4,3303.9,12.11884032]
[1768691163162,0.001,3304.5,3304.1,12.11884032]
[1768691163364,0.001,3304.5,3304.3,12.11884032]
[1768691163894,11.95773891,3305.0,3304.3,12.11884032]
[1768691164195,14.98348239,3305.0,3304.3,12.11884032]
[1768691164364,11.95773891,3304.9,3304.3,12.11884032]
[1768691165392,11.95773891,3304.9,3304.3,15.14516828]
[1768691165554,3.02574348,3305.0,3304.3,15.14516828]
[1768691165759,3.02545709,3305.3,3304.3,15.14516828]
[1768691166055,12.24007424,3305.2,3304.3,15.14516828]
[1768691166362,11.95773891,3305.1,3304.3,15.14516828]
[1768691167593,14.98339422,3305.1,3304.3,15.14516828]
[1768691167792,11.95773891,3305.1,3304.4,12.11884032]
[1768691167993,14.98312794,3305.4,3304.4,12.11884032]
[1768691168305,14.83209446,3305.4,3304.3,6.05268755]
[1768691168511,14.83209446,3305.4,3304.4,12.11884032]
[1768691168806,11.80673891,3305.4,3304.4,12.11884032]
[1768691169590,11.80673891,3305.4,3304.6,12.11884032]
[1768691169776,11.80673891,3305.4,3304.8,12.11884032]
[1768691171913,11.80673891,3305.4,3304.8,15.14465614]
[1768691173418,12.45673891,3305.9,3304.8,15.14465614]
[1768691173613,11.95773891,3305.7,3304.8,15.14465614]
[1768691174887,11.95773891,3305.7,3304.7,3.52495822]
[1768691175287,6.0503388,3305.6,3304.7,15.64379854]
[1768691175498,11.95773891,3305.5,3304.7,15.64379854]
[1768691176395,11.95773891,3305.3,3304.7,15.64379854]
[1768691180034,0.001,3305.2,3304.7,15.64379854]
[1768691180603,0.001,3305.2,3304.8,12.11884032]
[1768691181134,0.001,3305.2,3304.8,15.14472978]
[1768691181934,0.001,3305.2,3304.8,12.11884032]
[1768691182100,0.001,3305.2,3304.8,15.14474008]
[1768691182815,12.87186333,3305.2,3304.7,3.5249528]
[1768691183449,12.87186333,3305.2,3304.8,11.7336724]
[1768691187415,15.89740593,3305.2,3304.8,11.7336724]
[1768691187623,12.87086333,3305.1,3304.4,11.7336724]
[1768691187947,12.87086333,3305.1,3304.5,3.52512371]
[1768691188138,12.87086333,3305.1,3304.6,3.02608295]
[1768691189345,12.87086333,3305.1,3304.2,14.76004583]
[1768691189346,12.87086333,3305.0,3304.2,14.76004583]
[1768691189647,12.87086333,3305.0,3304.4,3.02625851]